bitfinex/quotes_BTCUSD_20240729
["timestamp","ask_amount","ask_price","bid_price","bid_amount"]
[1722296222121,3.05037136,67070.0,67069.0,1e-06]
[1722296222526,3.05121136,67070.0,67069.0,1e-06]
[1722296222728,3.03721136,67070.0,67069.0,1e-06]
[1722296223003,3.05121136,67070.0,67069.0,1e-06]
[1722296223563,2.17481882,67070.0,67069.0,1e-06]
[1722296223764,2.17481882,67070.0,67069.0,0.147601]
[1722296223765,2.20758568,67070.0,67069.0,0.147601]
[1722296223967,2.15286215,67070.0,67069.0,0.147601]
[1722296224122,2.05286215,67070.0,67069.0,0.147601]
[1722296225272,2.15286215,67070.0,67069.0,0.147601]
[1722296225933,2.17586215,67070.0,67069.0,0.147601]
[1722296226142,1.85466715,67070.0,67069.0,0.147601]
[1722296226506,1.85514095,67070.0,67069.0,0.147601]
[1722296226934,1.55694595,67070.0,67069.0,0.147601]
[1722296227140,1.31384656,67070.0,67069.0,0.147601]
[1722296227789,1.29984656,67070.0,67069.0,0.147601]
[1722296228229,1.31384656,67070.0,67069.0,0.147601]
[1722296228667,1.39984656,67070.0,67069.0,0.147601]
[1722296228861,1.01465156,67070.0,67069.0,0.147601]
[1722296229062,0.39511625,67070.0,67069.0,0.147601]
[1722296229289,0.34321703,67070.0,67069.0,0.296701]
[1722296229498,0.20992904,67070.0,67069.0,0.147601]
[1722296229715,0.20981414,67070.0,67069.0,0.296701]
[1722296229981,0.20981414,67070.0,67069.0,0.147601]
[1722296230178,0.20981414,67070.0,67069.0,0.296701]
[1722296230394,0.22381414,67070.0,67069.0,0.296701]
[1722296230655,0.20970628,67070.0,67069.0,0.296701]
[1722296230887,0.09298736,67070.0,67069.0,0.594901]
[1722296231119,0.09298736,67070.0,67069.0,0.147601]
[1722296231617,0.07998736,67070.0,67069.0,0.296701]
[1722296232083,0.09398736,67070.0,67069.0,0.594901]
[1722296232359,0.01984,67070.0,67069.0,0.594901]
[1722296232609,0.00584,67070.0,67069.0,0.594901]
[1722296232856,0.07154355,67070.0,67069.0,0.445801]
[1722296233145,0.07154355,67070.0,67069.0,0.594901]
[1722296233584,0.07154355,67070.0,67069.0,0.296701]
[1722296233804,0.08433582,67070.0,67069.0,0.296701]
[1722296234052,0.09433582,67070.0,67069.0,0.296701]
[1722296234499,0.08433582,67070.0,67069.0,0.296701]
[1722296234722,0.07154355,67070.0,67069.0,0.296701]
[1722296234961,0.07654355,67070.0,67069.0,0.594901]
[1722296236797,0.07654355,67070.0,67069.0,0.893101]
[1722296237768,0.07654355,67070.0,67069.0,0.594901]
[1722296238226,0.22564055,67070.0,67069.0,0.147601]
[1722296238467,0.23863226,67070.0,67069.0,0.147601]
[1722296238698,0.08953526,67070.0,67069.0,0.147601]
[1722296239368,0.23863226,67070.0,67069.0,0.147601]
[1722296240014,0.83502226,67070.0,67069.0,0.147601]
[1722296241111,0.53182726,67070.0,67069.0,0.147601]
[1722296241314,0.23363226,67070.0,67069.0,0.147601]
[1722296241520,0.08453526,67070.0,67069.0,0.147601]
[1722296241964,0.09353526,67070.0,67069.0,0.147601]
[1722296242181,0.24263226,67070.0,67069.0,0.147601]
[1722296242389,0.23363226,67070.0,67069.0,0.147601]
[1722296242612,0.83002226,67070.0,67069.0,0.147601]
[1722296242837,0.53682726,67070.0,67069.0,0.147601]
[1722296243081,0.53982726,67070.0,67069.0,0.147601]
[1722296243955,0.53482726,67070.0,67069.0,0.147601]
[1722296244181,0.23363226,67070.0,67069.0,0.147601]
[1722296244376,0.08453526,67070.0,67069.0,0.147601]
[1722296244550,0.09353526,67070.0,67069.0,0.147601]
[1722296245365,0.24263226,67070.0,67069.0,0.147601]
[1722296246010,0.09353526,67070.0,67069.0,0.147601]
[1722296246389,0.24263226,67070.0,67069.0,0.147601]
[1722296247016,0.09353526,67070.0,67069.0,0.147601]
[1722296247810,0.02199171,67070.0,67069.0,0.893101]
[1722296248010,0.02199171,67070.0,67069.0,1.33440039]
[1722296248011,0.009,67070.0,67069.0,1.33440039]
[1722296248363,0.07154355,67077.0,67076.0,0.592553]
[1722296249746,0.07154355,67077.0,67076.0,0.890722]
[1722296249940,0.07154355,67077.0,67076.0,0.592553]
[1722296250344,0.07154355,67077.0,67076.0,0.1453]
[1722296250568,0.08667843,67077.0,67076.0,0.1453]
[1722296251341,0.08767843,67077.0,67076.0,0.1453]
[1722296251548,0.08667843,67077.0,67076.0,0.1453]
[1722296251894,0.08767843,67077.0,67076.0,0.1453]
[1722296252198,0.10925976,67077.0,67076.0,0.1453]
[1722296252513,0.11025976,67077.0,67076.0,0.1453]
[1722296252711,0.10925976,67077.0,67076.0,0.1453]
[1722296252933,0.25834176,67077.0,67076.0,0.1453]
[1722296253466,0.447292,67070.0,67069.0,1e-06]
[1722296253609,0.83861188,67070.0,67069.0,1e-06]
[1722296253810,0.85377324,67070.0,67069.0,1e-06]
[1722296254010,0.85377324,67070.0,67069.0,0.141101]
[1722296254213,0.55557824,67070.0,67069.0,0.141101]
[1722296254573,0.78950431,67070.0,67069.0,0.141101]
[1722296254705,1.08769931,67070.0,67069.0,0.141101]
[1722296255119,0.96451984,67070.0,67069.0,0.141101]
[1722296255400,1.08777182,67070.0,67069.0,0.141101]
[1722296255755,1.08877182,67070.0,67069.0,0.141101]
[1722296256382,1.08777182,67070.0,67069.0,0.141101]
[1722296257300,1.08797105,67070.0,67069.0,0.141101]
[1722296257674,1.08897105,67070.0,67069.0,0.141101]
[1722296258396,0.96551984,67070.0,67069.0,0.141101]
[1722296258624,1.08903591,67070.0,67069.0,0.141101]
[1722296259110,0.96551984,67070.0,67069.0,0.141101]
[1722296259336,1.38720741,67070.0,67069.0,0.141101]
[1722296260908,1.08901241,67070.0,67069.0,0.141101]
[1722296261780,1.43191138,67070.0,67069.0,0.141101]
[1722296262000,1.08944224,67070.0,67069.0,0.141101]
[1722296262217,1.38763724,67070.0,67069.0,0.141101]
[1722296262698,1.13371638,67070.0,67069.0,0.141101]
[1722296262899,1.08944224,67070.0,67069.0,0.141101]
[1722296263775,1.13371638,67070.0,67069.0,0.141101]
[1722296264795,1.15592817,67070.0,67069.0,0.141101]
[1722296265136,1.15592817,67070.0,67069.0,1e-06]
[1722296265345,1.45412317,67070.0,67069.0,1e-06]
[1722296265470,1.08944016,67070.0,67069.0,1e-06]
[1722296265678,1.17809084,67070.0,67069.0,1e-06]
[1722296265874,1.17791139,67070.0,67069.0,1e-06]
[1722296266307,1.08926071,67070.0,67069.0,1e-06]
[1722296266512,1.38745571,67070.0,67069.0,1e-06]
[1722296267046,2.1369451,67070.0,67069.0,1e-06]
[1722296267212,2.09352034,67070.0,67069.0,1e-06]
[1722296267389,2.16812034,67070.0,67069.0,1e-06]
[1722296267799,1.88942978,67070.0,67069.0,1e-06]
[1722296267983,2.21491067,67070.0,67069.0,1e-06]
[1722296268184,2.50410567,67070.0,67069.0,1e-06]
[1722296268800,2.49010567,67070.0,67069.0,1e-06]
[1722296268999,2.50410567,67070.0,67069.0,1e-06]
[1722296269397,2.51810567,67070.0,67069.0,1e-06]
[1722296269826,2.25176637,67070.0,67069.0,1e-06]
[1722296270025,2.20991067,67070.0,67069.0,1e-06]
[1722296270453,2.21991067,67070.0,67069.0,1e-06]
[1722296270656,2.06438362,67070.0,67069.0,1e-06]
[1722296270854,2.2202617,67070.0,67069.0,1e-06]
[1722296271058,2.23862478,67070.0,67069.0,1e-06]
[1722296271233,2.51845674,67070.0,67069.0,1e-06]
[1722296271477,2.22026174,67070.0,67069.0,1e-06]
[1722296272077,2.21026174,67070.0,67069.0,1e-06]
[1722296272280,1.93042978,67070.0,67069.0,1e-06]
[1722296272480,2.21016909,67070.0,67069.0,1e-06]
[1722296273478,2.51836409,67070.0,67069.0,1e-06]
[1722296273685,2.22016909,67070.0,67069.0,1e-06]
[1722296274473,2.22018719,67070.0,67069.0,1e-06]
[1722296277036,2.51971085,67070.0,67069.0,1e-06]
[1722296277694,2.51978805,67070.0,67069.0,1e-06]
[1722296279153,2.53978805,67070.0,67069.0,1e-06]
[1722296279571,0.9615955,67070.0,67052.0,0.0625]
[1722296279775,0.149144,67049.0,67048.0,0.0764]
[1722296279981,1.00333623,67049.0,67048.0,0.0764]
[1722296280188,0.745732,67048.0,67047.0,0.075729]
[1722296280359,1.30163923,67048.0,67047.0,0.075729]
[1722296280780,1.45937945,67048.0,67047.0,0.009229]
[1722296280985,1.55937945,67048.0,67047.0,0.009229]
[1722296281212,1.85767245,67048.0,67047.0,0.009229]
[1722296281491,1.83616913,67048.0,67047.0,0.009229]
[1722296281689,1.98300994,67048.0,67047.0,0.009229]
[1722296282080,1.90211544,67048.0,67047.0,0.009229]
[1722296282325,2.02557299,67048.0,67047.0,0.009229]
[1722296282532,2.42297127,67048.0,67047.0,0.009229]
[1722296282746,2.54694993,67048.0,67047.0,0.009229]
[1722296283000,2.39721847,67048.0,67047.0,0.009229]
[1722296283231,2.41121847,67048.0,67047.0,0.009229]
[1722296283461,2.57259499,67048.0,67047.0,0.009229]
[1722296283686,2.38775704,67048.0,67047.0,0.009229]
[1722296283907,2.40175704,67048.0,67047.0,0.009229]
[1722296284349,2.42575704,67048.0,67047.0,0.009229]
[1722296284777,2.38784111,67048.0,67047.0,0.009229]
[1722296284986,2.39223295,67048.0,67047.0,0.009229]
[1722296285589,2.40223295,67048.0,67047.0,0.009229]
[1722296285830,2.39223295,67048.0,67047.0,0.009229]
[1722296286036,1.82920333,67048.0,67047.0,0.009229]
[1722296286239,2.04383622,67048.0,67047.0,0.009229]
[1722296286655,1.94981205,67048.0,67047.0,0.009229]
[1722296286854,1.87486941,67048.0,67047.0,0.009229]
[1722296287052,1.86086941,67048.0,67047.0,0.009229]
[1722296287166,1.98534622,67048.0,67047.0,0.009229]
[1722296287851,1.84686941,67048.0,67047.0,0.009229]
[1722296288129,1.86086941,67048.0,67047.0,0.009229]
[1722296288372,1.94922485,67048.0,67047.0,0.009229]
[1722296288499,1.93522485,67048.0,67047.0,0.009229]
[1722296288716,1.94922485,67048.0,67047.0,0.009229]
[1722296289030,1.93522485,67048.0,67047.0,0.009229]
[1722296289256,1.84685718,67048.0,67047.0,0.009229]
[1722296289436,1.94920845,67048.0,67047.0,0.009229]
[1722296289647,1.84685718,67048.0,67047.0,0.009229]
[1722296289841,1.86085718,67048.0,67047.0,0.009229]
[1722296290257,1.92711194,67048.0,67047.0,0.009229]
[1722296290443,1.92710429,67048.0,67047.0,0.009229]
[1722296290648,1.91837826,67048.0,67047.0,0.009229]
[1722296291437,1.85213115,67048.0,67047.0,0.009229]
[1722296291641,1.83813115,67048.0,67047.0,0.009229]
[1722296292062,1.85213115,67048.0,67047.0,0.009229]
[1722296292264,1.71414298,67048.0,67047.0,0.009229]
[1722296292464,1.88228913,67048.0,67047.0,0.009229]
[1722296292690,1.85212933,67048.0,67047.0,0.009229]
[1722296292842,1.89628151,67048.0,67047.0,0.009229]
[1722296293220,1.88228151,67048.0,67047.0,0.009229]
[1722296293426,1.89628151,67048.0,67047.0,0.009229]
[1722296293692,1.90406322,67048.0,67047.0,0.009229]
[1722296293885,1.9928678,67048.0,67047.0,0.009229]
[1722296294143,2.1181678,67048.0,67047.0,0.009229]
[1722296294312,2.12062815,67048.0,67047.0,0.009229]
[1722296294489,2.2310145,67048.0,67047.0,0.009229]
[1722296294695,2.2170145,67048.0,67047.0,0.009229]
[1722296294903,2.10662815,67048.0,67047.0,0.009229]
[1722296295120,2.20522815,67048.0,67047.0,0.009229]
[1722296295320,2.50352115,67048.0,67047.0,0.009229]
[1722296295500,2.5215188,67048.0,67047.0,0.009229]
[1722296295696,2.50149368,67048.0,67047.0,0.009229]
[1722296295882,2.71979368,67048.0,67047.0,0.009229]
[1722296296083,0.149186,67030.0,67029.0,0.076]
[1722296296287,0.81623976,67030.0,67029.0,0.076]
[1722296296490,1.12895691,67030.0,67029.0,0.076]
[1722296296732,1.42732991,67030.0,67029.0,0.076]
[1722296297572,1.44132991,67030.0,67029.0,0.076]
[1722296298307,1.44132991,67030.0,67012.0,0.02554534]
[1722296298308,0.4476,67024.0,67023.0,0.076]
[1722296298507,0.447607,67023.0,67022.0,0.0619]
[1722296298658,0.57102706,67023.0,67022.0,0.0619]
[1722296298863,1.044417,67023.0,67022.0,0.0619]
[1722296299027,1.3251585,67023.0,67018.0,0.076]
[1722296299226,1.3251585,67023.0,67018.0,0.1412]
[1722296299227,1.044477,67019.0,67018.0,0.1412]
[1722296299425,1.16789298,67019.0,67018.0,0.1412]
[1722296299647,1.18211911,67019.0,67018.0,0.1412]
[1722296300586,1.19611911,67019.0,67018.0,0.1412]
[1722296301018,1.18211911,67019.0,67018.0,0.1412]
[1722296301459,1.19611911,67019.0,67018.0,0.1412]
[1722296301739,1.19594142,67019.0,67018.0,0.1412]
[1722296302181,1.21935152,67019.0,67018.0,0.1412]
[1722296303245,0.92092952,67019.0,67018.0,0.1412]
[1722296304101,0.92880617,67019.0,67018.0,0.1412]
[1722296304819,0.92845476,67019.0,67018.0,0.1412]
[1722296307274,1.1985298,67019.0,67018.0,0.1412]
[1722296307930,1.19847642,67019.0,67018.0,0.1412]
[1722296308360,1.49689842,67019.0,67018.0,0.1412]
[1722296309017,1.48289842,67019.0,67018.0,0.1412]
[1722296309251,0.746122,67013.0,67012.0,0.0008506]
[1722296309482,1.21045074,67013.0,67012.0,0.0008506]
[1722296309694,1.22464821,67013.0,67012.0,0.0008506]
[1722296309936,1.22464821,67013.0,67012.0,0.1445506]
[1722296310628,0.92619921,67013.0,67012.0,0.1445506]
[1722296310851,1.22464821,67013.0,67012.0,0.1445506]
[1722296311075,1.22518965,67013.0,67012.0,0.1445506]
[1722296312324,1.23418965,67013.0,67012.0,0.1445506]
[1722296312885,1.22518965,67013.0,67012.0,0.1445506]
[1722296313112,1.24860041,67013.0,67012.0,0.1445506]
[1722296314094,1.25660041,67013.0,67012.0,0.1445506]
[1722296314296,1.10331855,67013.0,67012.0,0.1445506]
[1722296315154,1.26084872,67013.0,67012.0,0.1445506]
[1722296315357,1.10331855,67013.0,67012.0,0.1445506]
[1722296315535,1.5591865,67013.0,67012.0,0.1445506]
[1722296315730,1.53556096,67013.0,67012.0,0.1445506]
[1722296316849,1.53448382,67013.0,67012.0,0.1445506]
[1722296317481,1.41045408,67013.0,67012.0,0.1445506]
[1722296317645,1.5342377,67013.0,67012.0,0.1445506]
[1722296317863,1.54084544,67013.0,67012.0,0.1445506]
[1722296318176,1.53284544,67013.0,67012.0,0.1445506]
[1722296318892,1.55625655,67013.0,67012.0,0.1445506]
[1722296319939,1.56225655,67013.0,67012.0,0.1445506]
[1722296320555,1.43847293,67013.0,67012.0,0.1445506]
[1722296320765,1.56214286,67013.0,67012.0,0.1445506]
[1722296321188,1.55614286,67013.0,67012.0,0.1445506]
[1722296321634,1.56114286,67013.0,67012.0,0.1445506]
[1722296322759,1.55614286,67013.0,67012.0,0.1445506]
[1722296323158,1.55914286,67013.0,67012.0,0.1445506]
[1722296323881,1.43547293,67013.0,67012.0,0.1445506]
[1722296324106,1.55243453,67013.0,67012.0,0.1445506]
[1722296324308,1.55343453,67013.0,67012.0,0.1445506]
[1722296324567,1.56243453,67013.0,67012.0,0.1445506]
[1722296324970,1.55843453,67013.0,67012.0,0.1445506]
[1722296325255,1.60970624,67013.0,67012.0,0.1445506]
[1722296325472,1.6318421,67013.0,67012.0,0.1445506]
[1722296325981,1.56543453,67013.0,67012.0,0.1445506]
[1722296326437,1.6248421,67013.0,67012.0,0.1445506]
[1722296326908,1.6328421,67013.0,67012.0,0.1445506]
[1722296327120,1.56643453,67013.0,67012.0,0.1445506]
[1722296327352,1.55843962,67013.0,67012.0,0.1445506]
[1722296327558,1.56943962,67013.0,67012.0,0.1445506]
[1722296327765,1.65805394,67013.0,67012.0,0.1445506]
[1722296327967,1.62364238,67013.0,67012.0,0.1445506]
[1722296328193,1.61764238,67013.0,67012.0,0.1445506]
[1722296328393,1.54002851,67013.0,67012.0,0.1445506]
[1722296328609,1.65278828,67013.0,67012.0,0.1445506]
[1722296328815,1.65078828,67013.0,67012.0,0.1445506]
[1722296329144,1.65678828,67013.0,67012.0,0.1445506]
[1722296329784,1.63465064,67013.0,67012.0,0.1445506]
[1722296330442,1.63488039,67013.0,67012.0,0.1445506]
[1722296330662,1.63488102,67013.0,67012.0,0.1445506]
[1722296330891,1.65829217,67013.0,67012.0,0.1445506]
[1722296331134,1.56967095,67013.0,67012.0,0.1445506]
[1722296331366,1.65829465,67013.0,67012.0,0.1445506]
[1722296331843,1.56467095,67013.0,67012.0,0.1445506]
[1722296332169,1.57667095,67013.0,67012.0,0.1445506]
[1722296332620,1.56467095,67013.0,67012.0,0.1445506]
[1722296332843,1.68744003,67013.0,67012.0,0.1445506]
[1722296333075,1.5532598,67013.0,67012.0,0.1445506]
[1722296333295,1.75143104,67013.0,67012.0,0.1445506]
[1722296333507,1.6406598,67013.0,67012.0,0.1445506]
[1722296333746,1.75106656,67013.0,67012.0,0.1445506]
[1722296334636,1.73906656,67013.0,67012.0,0.1445506]
[1722296334856,1.62828157,67013.0,67012.0,0.1445506]
[1722296335088,1.61628157,67013.0,67012.0,0.1445506]
[1722296335305,1.62828157,67013.0,67012.0,0.1445506]
[1722296336179,1.63428157,67013.0,67012.0,0.1445506]
[1722296336394,1.65769277,67013.0,67012.0,0.1445506]
[1722296336617,1.63428157,67013.0,67012.0,0.1445506]
[1722296337086,1.63372759,67013.0,67012.0,0.1445506]
[1722296337319,1.93217659,67013.0,67012.0,0.0823506]
[1722296337527,1.93217659,67013.0,67012.0,0.0008506]
[1722296337528,2.08221357,67013.0,67012.0,0.0008506]
[1722296337969,1.81291082,67013.0,67012.0,0.0008506]
[1722296338184,2.08246003,67013.0,67012.0,0.0008506]
[1722296338644,2.07046003,67013.0,67012.0,0.0008506]
[1722296338870,2.06446305,67013.0,67012.0,0.0008506]
[1722296339042,2.07746305,67013.0,67012.0,0.0008506]
[1722296339201,2.08446305,67013.0,67012.0,0.0008506]
[1722296339852,2.10787557,67013.0,67012.0,0.0008506]
[1722296340058,1.83832334,67013.0,67012.0,0.0008506]
[1722296340292,2.08454581,67013.0,67012.0,0.0008506]
[1722296340477,2.23440815,67013.0,67012.0,0.0008506]
[1722296340688,1.98623361,67013.0,67012.0,0.0008506]
[1722296340936,2.23441318,67013.0,67012.0,0.0008506]
[1722296341298,2.08455558,67013.0,67012.0,0.0008506]
[1722296341953,2.22765497,67013.0,67012.0,0.0008506]
[1722296343482,2.25106886,67013.0,67012.0,0.0008506]
[1722296343893,2.22765497,67013.0,67012.0,0.0008506]
[1722296344252,2.52610397,67013.0,67012.0,0.0008506]
[1722296344455,2.62610397,67013.0,67012.0,0.0008506]
[1722296345186,0.149249,67002.0,67001.0,0.00924]
[1722296345390,1.26763434,67002.0,67001.0,0.00924]
[1722296345626,2.44783536,67002.0,67001.0,0.00924]
[1722296345831,2.74633336,67002.0,67001.0,0.00924]
[1722296346230,2.75633336,67002.0,67001.0,0.00924]
[1722296346728,2.75733336,67002.0,67001.0,0.00924]
[1722296346906,2.76933336,67002.0,67001.0,0.00924]
[1722296347406,2.89423336,67002.0,67001.0,0.00924]
[1722296348182,2.88223336,67002.0,67001.0,0.00924]
[1722296348407,2.89623336,67002.0,67001.0,0.00924]
[1722296348563,2.97896927,67002.0,67001.0,0.00924]
[1722296348811,3.28287449,67002.0,67001.0,0.00924]
[1722296349015,3.2454554,67002.0,67001.0,0.00924]
[1722296349236,3.2594554,67002.0,67001.0,0.00924]
[1722296349682,1.343664,66981.0,66980.0,0.1425]
[1722296349891,1.81804121,66981.0,66980.0,0.1425]
[1722296350160,1.81804121,66981.0,66977.0,0.1425]
[1722296350161,1.343682,66980.0,66977.0,0.1425]
[1722296350398,1.74651566,66980.0,66977.0,0.1425]
[1722296350835,1.86025948,66980.0,66977.0,0.1425]
[1722296351105,1.86025948,66980.0,66977.0,0.0772]
[1722296351907,1.86025948,66980.0,66975.0,0.0772]
[1722296352149,2.31595487,66980.0,66970.0,0.1425]
[1722296352371,2.33938058,66980.0,66970.0,0.1425]
[1722296352599,1.87425948,66980.0,66970.0,0.1425]
[1722296352837,1.87425948,66980.0,66979.0,0.15174]
[1722296353059,1.78378878,66980.0,66979.0,0.15174]
[1722296353276,1.71752427,66980.0,66979.0,0.15174]
[1722296353515,1.70352427,66980.0,66979.0,0.15174]
[1722296353981,1.71752427,66980.0,66979.0,0.08644]
[1722296354197,1.78378878,66980.0,66979.0,0.08644]
[1722296354422,1.77566672,66980.0,66979.0,0.08644]
[1722296354907,1.30884441,66980.0,66979.0,0.08644]
[1722296355127,1.44694695,66980.0,66979.0,0.08644]
[1722296355345,1.34694695,66980.0,66979.0,0.08644]
[1722296355593,1.22284441,66980.0,66979.0,0.08644]
[1722296355806,1.24627006,66980.0,66979.0,0.15054]
[1722296356451,0.94767406,66980.0,66979.0,0.15054]
[1722296356911,0.9044778,66980.0,66979.0,0.15054]
[1722296357828,0.3072858,66980.0,66979.0,0.15054]
[1722296358044,0.6058818,66980.0,66979.0,0.15054]
[1722296358263,0.1579878,66980.0,66979.0,0.15054]
[1722296358489,0.3072858,66980.0,66979.0,0.15054]
[1722296358738,0.1579878,66980.0,66979.0,0.62310486]
[1722296358946,0.06542565,66980.0,66979.0,1.07100586]
[1722296359175,0.06542565,66980.0,66979.0,1.10300586]
[1722296359624,0.06542565,66980.0,66979.0,1.40160686]
[1722296359834,0.06542565,66980.0,66979.0,1.37074239]
[1722296360039,0.06542565,66980.0,66979.0,1.05014139]
[1722296360252,0.03742565,66980.0,66979.0,1.05014139]
[1722296360458,0.04342565,66980.0,66979.0,1.05014139]
[1722296360865,0.014,66980.0,66979.0,1.07014139]
[1722296361094,0.015,66980.0,66979.0,1.07014139]
[1722296361365,0.015,66980.0,66979.0,1.36874239]
[1722296361645,0.015,66980.0,66979.0,1.07014139]
[1722296361879,0.014,66980.0,66979.0,1.35874239]
[1722296362126,0.015,66980.0,66979.0,1.05014139]
[1722296362557,0.015,66980.0,66979.0,1.44858681]
[1722296362771,0.01482049,66980.0,66979.0,1.44858681]
[1722296363803,0.03823983,66980.0,66979.0,1.44858681]
[1722296364015,0.07154355,66995.0,66990.0,0.158]
[1722296364228,0.07154355,66995.0,66994.0,0.894335]
[1722296364439,0.07154355,66995.0,66994.0,1.04943439]
[1722296364668,0.07154355,66995.0,66994.0,1.03743439]
[1722296365138,0.07154355,66995.0,66994.0,1.02343439]
[1722296365801,0.07254355,66995.0,66994.0,1.02443439]
[1722296366061,0.07254355,66995.0,66994.0,1.17953378]
[1722296367389,0.09595963,66995.0,66994.0,1.49806778]
[1722296367597,0.09595963,66995.0,66994.0,1.47606778]
[1722296368378,0.07354355,66995.0,66994.0,1.48806778]
[1722296369110,0.07354355,66995.0,66994.0,1.50806778]
[1722296369287,0.07354355,66995.0,66994.0,1.48806778]
[1722296369697,0.07354355,66995.0,66994.0,1.50806778]
[1722296369900,0.07354355,66995.0,66994.0,1.51006778]
[1722296370077,0.002,66995.0,66994.0,1.51899243]
[1722296374793,0.002,66995.0,66994.0,1.84052643]
[1722296375121,0.07154355,67013.0,67012.0,0.291627]
[1722296375322,0.07154355,67013.0,67012.0,0.73318039]
[1722296375513,0.08538575,67013.0,67012.0,0.73318039]
[1722296375677,0.07154355,67013.0,67012.0,0.73318039]
[1722296376223,0.09495412,67013.0,67012.0,0.73318039]
[1722296376422,0.09495412,67013.0,67012.0,0.8600445]
[1722296376704,0.07154355,67013.0,67012.0,0.8600445]
[1722296377334,0.07154355,67013.0,67012.0,0.28549939]
[1722296378019,0.08538575,67013.0,67012.0,0.28549939]
[1722296378239,0.08538575,67013.0,67012.0,0.43472639]
[1722296378456,0.08538575,67013.0,67012.0,0.44372639]
[1722296378996,0.08538575,67013.0,67012.0,0.43472639]
[1722296379219,0.07154355,67013.0,67012.0,0.8650442]
[1722296379443,0.07154355,67013.0,67012.0,0.8600442]
[1722296379669,0.09495411,67013.0,67012.0,0.8650442]
[1722296380587,0.09495411,67013.0,67012.0,0.5665902]
[1722296380775,0.09495411,67013.0,67012.0,0.43972639]
[1722296381294,0.09495411,67013.0,67012.0,0.28549939]
[1722296381725,0.09495411,67013.0,67012.0,0.29549939]
[1722296381939,0.10879631,67013.0,67012.0,0.43772639]
[1722296382149,0.10879631,67013.0,67012.0,0.30254257]
[1722296382373,0.10879631,67013.0,67012.0,0.30554257]
[1722296382578,0.10879631,67013.0,67012.0,0.29754257]
[1722296382783,0.10879631,67013.0,67012.0,0.30154257]
[1722296382967,0.10879631,67013.0,67012.0,0.45076957]
[1722296383228,0.10879631,67013.0,67012.0,0.44776957]
[1722296383474,0.08538575,67013.0,67012.0,0.44776957]
[1722296383922,0.08538575,67013.0,67012.0,0.57347103]
[1722296384153,0.08622575,67013.0,67012.0,0.87192503]
[1722296384585,0.08622575,67013.0,67012.0,0.87592503]
[1722296384758,0.07238355,67013.0,67012.0,0.87592503]
[1722296384979,0.07238355,67013.0,67012.0,0.88192503]
[1722296385176,0.12159455,67019.0,67014.0,0.149221]
[1722296385409,0.149207,67021.0,67016.0,0.149216]
[1722296385624,0.14921,67020.0,67017.0,0.0772]
[1722296385760,0.149207,67021.0,67017.0,0.226415]
[1722296385956,0.00091928,67020.0,67017.0,0.0772]
[1722296386366,0.149209,67020.0,67017.0,0.0772]
[1722296386590,0.149207,67021.0,67017.0,0.0961339]
[1722296386831,0.0138422,67019.0,67018.0,0.00298394]
[1722296387076,0.149204,67022.0,67018.0,0.15219694]
[1722296387288,0.0138422,67019.0,67018.0,0.15219694]
[1722296387486,0.298382,67028.0,67018.0,0.00298394]
[1722296387686,0.06460051,67023.0,67021.0,0.0608]
[1722296387862,0.06460051,67023.0,67022.0,0.149204]
[1722296388066,0.06460051,67023.0,67022.0,0.15218779]
[1722296388362,0.06460051,67023.0,67022.0,0.45059679]
[1722296388550,0.149181,67033.0,67023.0,0.447607]
[1722296388772,0.149183,67032.0,67023.0,0.99551532]
[1722296388988,0.149185,67031.0,67023.0,0.69711032]
[1722296390377,0.149187,67030.0,67023.0,0.69711032]
[1722296390581,0.149184,67031.0,67023.0,0.69711032]
[1722296391028,0.149184,67031.0,67023.0,0.69911032]
[1722296391436,0.149181,67033.0,67023.0,0.99751532]
[1722296391631,0.149183,67032.0,67023.0,0.99751532]
[1722296391857,0.149183,67032.0,67023.0,1.00151532]
[1722296393370,0.149184,67031.0,67023.0,1.00151532]
[1722296395293,0.14101049,67024.0,67023.0,1.00151532]
[1722296396320,0.14101049,67024.0,67023.0,0.40470532]
[1722296396522,0.15493166,67024.0,67023.0,0.14909939]
[1722296396929,0.15493166,67024.0,67023.0,0.29830139]
[1722296398358,0.17833915,67024.0,67023.0,0.29830139]
[1722296398670,0.15493166,67024.0,67023.0,0.29830139]
[1722296400822,0.15493166,67024.0,67023.0,0.59670639]
[1722296401346,0.14101049,67024.0,67023.0,0.70872376]
[1722296401560,0.15534007,67024.0,67023.0,0.70872376]
[1722296402076,0.17874751,67024.0,67023.0,0.70872376]
[1722296402287,0.08587313,67024.0,67023.0,0.70872376]
[1722296402640,0.14179908,67024.0,67023.0,0.70872376]
[1722296403260,0.26578461,67024.0,67023.0,0.70872376]
[1722296403503,0.26578461,67024.0,67023.0,0.26111676]
[1722296403714,0.280146,67024.0,67023.0,0.29830139]
[1722296404481,0.15616047,67024.0,67023.0,0.29830139]
[1722296404692,0.28014618,67024.0,67023.0,0.29830139]
[1722296405550,0.30355367,67024.0,67023.0,0.59670639]
[1722296405725,0.30355367,67024.0,67023.0,0.62338878]
[1722296406094,0.28014618,67024.0,67023.0,0.62338878]
[1722296406486,0.20859835,67024.0,67023.0,1.37659878]
[1722296406715,0.08461692,67024.0,67023.0,1.37659878]
[1722296406920,0.07025553,67024.0,67023.0,1.07819378]
[1722296407126,0.07154355,67034.0,67027.0,0.149192]
[1722296407332,0.07154355,67034.0,67028.0,0.40010657]
[1722296407333,0.3446305,67033.0,67028.0,0.40010657]
[1722296407509,0.3446305,67033.0,67028.0,0.40010757]
[1722296407510,0.1954505,67032.0,67028.0,0.40010757]
[1722296407743,0.1954505,67031.0,67028.0,0.14309939]
[1722296407853,0.1954505,67030.0,67028.0,0.14309939]
[1722296408058,0.1954505,67029.0,67028.0,0.29229039]
[1722296408540,0.20981189,67029.0,67028.0,0.29229039]
[1722296408740,0.23321772,67029.0,67028.0,0.29229039]
[1722296409328,0.20981189,67029.0,67028.0,0.29829039]
[1722296409532,0.20981189,67029.0,67028.0,0.29229039]
[1722296410068,0.20981189,67029.0,67028.0,0.40217474]
[1722296410267,0.20981189,67029.0,67028.0,0.40917474]
[1722296410874,0.20981189,67029.0,67028.0,0.70755674]
[1722296411509,0.20981189,67029.0,67028.0,0.70055674]
[1722296411745,0.20981189,67029.0,67028.0,0.70755674]
[1722296412292,0.20981189,67029.0,67028.0,0.71555674]
[1722296412501,0.23321764,67029.0,67028.0,0.71555674]
[1722296412743,0.20981189,67029.0,67028.0,0.70055674]
[1722296412948,0.20981189,67029.0,67028.0,0.70955674]
[1722296413348,0.20981189,67029.0,67028.0,1.00793874]
[1722296413565,0.20981189,67029.0,67028.0,1.14843874]